Workbook

Sheet How to use
B3: STEP 1 | C3: Define | D3: radius of MT | E3: 8.2
D4: protofilament number | E4: 13
D5: Tubulin periodicity | E5: 4
B7: STEP 2 | C7: Define the angles of
D8: MT planer tilting | E8: 0
D9: MT vertical tilting | E9: -10
D10: MT rotation | E10: 0
B12: STEP 3 | C12: Execute the following macros | E12: AUTO
D13: Or Ctrl+Shift+A | O13: 0
B15: Please, MACRO function of your EXCEL on!

Sheet Data
A1: 1 | B1: 2 | C1: 3 | D1: 4 | E1: 5 | F1: 6 | G1: 7 | H1: 8 | I1: 9 | J1: 10 | K1: 11 | L1: 12 | M1: 13 | N1: 14 | O1: 15 | P1: 16 | Q1: 17 | R1: 18 | S1: 19 | T1: 20 | U1: 21 | V1: 3 | W1: 4 | X1: 5 | Y1: 25 | Z1: 26 | AA1: 27 | AB1: α | AC1: 29 | AD1: 30 | AE1: 31 | AF1: β | AG1: 33 | AH1: 34
C2: Original posiiton | G2: Y-rotation | J2: X-rotation | V2: Original posiiton
A3: zz | B3: r (rad) | C3: x | D3: y | E3: z | G3: X | H3: Y | I3: Z | J3: X | K3: Y | L3: Z | M3: αβ | N3: MinY | S3: Time | V3: x | W3: y | X3: z | Y3: αβ | AB3: x | AC3: y | AD3: z | AF3: x | AG3: y | AH3: z
A4: =$S$12+0 -> 0 | B4: ='How to use'!E3 -> 8.2 | C4: =IF(A4<$B$7,$B$4*COS(A4/$B$7*2*PI()+$B$19),"") -> 8.2 | D4: =IF(A4<$B$7,$B$4*SIN(A4/$B$7*2*PI()+$B$19),"") -> 0 | E4: =IF(A4<$B$7,$B$10*3/$B$7*A4,"") -> 0 | G4: =IF(C4<>"",C4*COS($B$13)-E4*SIN($B$13),"") -> 8.2 | H4: =IF(C4<>"",D4,"") -> 0 | I4: =IF(C4<>"",C4*SIN($B$13)+E4*COS($B$13),"") -> 0 | J4: =IF(C4<>"",G4,0) -> 8.2 | K4: =IF(C4<>"",H4*COS($B$16)-I4*SIN($B$16),$N$4) -> 0 | L4: =IF(C4<>"",H4*SIN($B$16)+I4*COS($B$16),-1000) -> 0 | M4: 0 | N4: -50 | S4: 10000 | V4: 0 | W4: -50 | X4: -1000 | Y4: 0 | AB4: =V4 -> 0 | AC4: =W4 -> -50 | AD4: =IF(Y4=0,-1000,X4) -> -1000 | AE4: 1 | AF4: =V4 -> 0 | AG4: =W4 -> -50 | AH4: =IF(Y4=1,-1000,X4) -> -1000
A5: =$S$12+1 -> 1 | C5: =IF(A5<$B$7,$B$4*COS(A5/$B$7*2*PI()+$B$19),"") -> 7.26073941 | D5: =IF(A5<$B$7,$B$4*SIN(A5/$B$7*2*PI()+$B$19),"") -> 3.810730011 | E5: =IF(A5<$B$7,$B$10*3/$B$7*A5,"") -> 0.9230769231 | G5: =IF(C5<>"",C5*COS($B$13)-E5*SIN($B$13),"") -> 7.26073941 | H5: =IF(C5<>"",D5,"") -> 3.810730011 | I5: =IF(C5<>"",C5*SIN($B$13)+E5*COS($B$13),"") -> 0.9230769231 | J5: =IF(C5<>"",G5,0) -> 7.26073941 | K5: =IF(C5<>"",H5*COS($B$16)-I5*SIN($B$16),$N$4) -> -3.69964839 | L5: =IF(C5<>"",H5*SIN($B$16)+I5*COS($B$16),-1000) -> 1.298590008 | M5: 0 | S5: Ang A | V5: 0 | W5: -50 | X5: -1000 | Y5: 0 | AB5: =V5 -> 0 | AC5: =W5 -> -50 | AD5: =IF(Y5=0,-1000,X5) -> -1000 | AE5: 2 | AF5: =V5 -> 0 | AG5: =W5 -> -50 | AH5: =IF(Y5=1,-1000,X5) -> -1000
A6: =$S$12+2 -> 2 | B6: pfn | C6: 4.658130923 | D6: 6.7484677 | E6: 1.846153846 | G6: 4.658130923 | H6: 6.7484677 | I6: 1.846153846 | J6: 4.658130923 | K6: -6.666793778 | L6: 2.122253765 | M6: 0 | S6: =B13 -> 0 | V6: 0 | W6: -50 | X6: -1000 | Y6: 0 | AB6: 0 | AC6: -50 | AD6: -1000 | AE6: 3 | AF6: 0 | AG6: -50 | AH6: -1000
A7: =$S$12+3 -> 3 | B7: ='How to use'!E4 -> 13 | C7: 0.9884007781 | D7: 8.140212768 | E7: 2.769230769 | G7: 0.9884007781 | H7: 8.140212768 | I7: 2.769230769 | J7: 0.9884007781 | K7: -8.336740773 | L7: 2.104864897 | M7: 0 | S7: Ang B | V7: 0 | W7: -50 | X7: -1000 | Y7: 0 | AB7: 0 | AC7: -50 | AD7: -1000 | AE7: 4 | AF7: 0 | AG7: -50 | AH7: -1000
A8: =$S$12+4 -> 4 | C8: -2.907760074 | D8: 7.66713319 | E8: 3.692307692 | G8: -2.907760074 | H8: 7.66713319 | I8: 3.692307692 | J8: -2.907760074 | K8: -8.441966502 | L8: 1.072972054 | M8: 0 | S8: =B16 -> -10 | V8: 0 | W8: -50 | X8: -1000 | Y8: 0 | AB8: 0 | AC8: -50 | AD8: -1000 | AE8: 5 | AF8: 0 | AG8: -50 | AH8: -1000
A9: =$S$12+5 -> 5 | B9: Tub p | C9: -6.137788135 | D9: 5.437605798 | E9: 4.615384615 | G9: -6.137788135 | H9: 5.437605798 | I9: 4.615384615 | J9: -6.137788135 | K9: -7.073406877 | L9: -0.9144654799 | M9: 0 | S9: Rate | V9: 0 | W9: -50 | X9: -1000 | Y9: 1 | AB9: 0 | AC9: -50 | AD9: -1000 | AE9: 6 | AF9: 0 | AG9: -50 | AH9: -1000
A10: =$S$12+6 -> 6 | B10: ='How to use'!E5 -> 4 | C10: -7.961722903 | D10: 1.962388447 | E10: 5.538461538 | G10: -7.961722903 | H10: 1.962388447 | I10: 5.538461538 | J10: -7.961722903 | K10: -4.659624274 | L10: -3.579584649 | M10: 0 | S10: 1000 | V10: 0 | W10: -50 | X10: -1000 | Y10: 1 | AB10: 0 | AC10: -50 | AD10: -1000 | AE10: 7 | AF10: 0 | AG10: -50 | AH10: -1000
A11: =$S$12+7 -> 7 | C11: -7.961722903 | D11: -1.962388447 | E11: 6.461538462 | G11: -7.961722903 | H11: -1.962388447 | I11: 6.461538462 | J11: -7.961722903 | K11: -1.868629057 | L11: -6.4892737 | M11: 0 | S11: n | V11: 0 | W11: -50 | X11: -1000 | Y11: 1 | AB11: 0 | AC11: -50 | AD11: -1000 | AE11: 8 | AF11: 0 | AG11: -50 | AH11: -1000
A12: =$S$12+8 -> 8 | B12: 仰角A | C12: -6.137788135 | D12: -5.437605798 | E12: 7.384615385 | G12: -6.137788135 | H12: -5.437605798 | I12: 7.384615385 | J12: -6.137788135 | K12: 0.5451535461 | L12: -9.154392869 | M12: 0 | S12: 0 | V12: 0 | W12: -50 | X12: -1000 | Y12: 1 | AB12: 0 | AC12: -50 | AD12: -1000 | AE12: 9 | AF12: 0 | AG12: -50 | AH12: -1000
A13: =$S$12+9 -> 9 | B13: ='How to use'!E8 -> 0 | C13: -2.907760074 | D13: -7.66713319 | E13: 8.307692308 | G13: -2.907760074 | H13: -7.66713319 | I13: 8.307692308 | J13: -2.907760074 | K13: 1.913713171 | L13: -11.1418304 | M13: 0 | V13: 0 | W13: -50 | X13: -1000 | Y13: 1 | AB13: 0 | AC13: -50 | AD13: -1000 | AE13: 10 | AF13: 0 | AG13: -50 | AH13: -1000
A14: =$S$12+10 -> 10 | C14: 0.9884007781 | D14: -8.140212768 | E14: 9.230769231 | G14: 0.9884007781 | H14: -8.140212768 | I14: 9.230769231 | J14: 0.9884007781 | K14: 1.808487443 | L14: -12.17372325 | M14: 0 | V14: 0 | W14: -50 | X14: -1000 | Y14: 0 | AB14: 0 | AC14: -50 | AD14: -1000 | AE14: 11 | AF14: 0 | AG14: -50 | AH14: -1000
A15: =$S$12+11 -> 11 | B15: 仰角B | C15: 4.658130923 | D15: -6.7484677 | E15: 10.15384615 | G15: 4.658130923 | H15: -6.7484677 | I15: 10.15384615 | J15: 4.658130923 | K15: 0.1385404478 | L15: -12.19111211 | M15: 0 | V15: 0 | W15: -50 | X15: -1000 | Y15: 0 | AB15: 0 | AC15: -50 | AD15: -1000 | AE15: 12 | AF15: 0 | AG15: -50 | AH15: -1000
A16: =$S$12+12 -> 12 | B16: ='How to use'!E9 -> -10 | C16: 7.26073941 | D16: -3.810730011 | E16: 11.07692308 | G16: 7.26073941 | H16: -3.810730011 | I16: 11.07692308 | J16: 7.26073941 | K16: -2.828604941 | L16: -11.36744836 | M16: 0 | V16: 0 | W16: -50 | X16: -1000 | Y16: 0 | AB16: 0 | AC16: -50 | AD16: -1000 | AE16: 13 | AF16: 0 | AG16: -50 | AH16: -1000
A17: =$S$12+13 -> 13 | J17: 0 | K17: -50 | L17: -1000 | M17: 0 | V17: 0 | W17: -50 | X17: -1000 | Y17: 0 | AB17: 0 | AC17: -50 | AD17: -1000 | AE17: 14 | AF17: 0 | AG17: -50 | AH17: -1000
A18: =$S$12+14 -> 14 | B18: Rotation | J18: 0 | K18: -50 | L18: -1000 | M18: 0 | V18: 0 | W18: -50 | X18: -1000 | Y18: 0 | AB18: 0 | AC18: -50 | AD18: -1000 | AE18: 15 | AF18: 0 | AG18: -50 | AH18: -1000
A19: =$S$12+15 -> 15 | B19: ='How to use'!E10 -> 0 | J19: 0 | K19: -50 | L19: -1000 | M19: 0 | V19: 0 | W19: -50 | X19: -1000 | Y19: 1 | AB19: 0 | AC19: -50 | AD19: -1000 | AE19: 16 | AF19: 0 | AG19: -50 | AH19: -1000
A20: =$S$12+16 -> 16 | J20: 0 | K20: -50 | L20: -1000 | M20: 0 | V20: 0 | W20: -50 | X20: -1000 | Y20: 1 | AB20: 0 | AC20: -50 | AD20: -1000 | AE20: 17 | AF20: 0 | AG20: -50 | AH20: -1000
A21: =$S$12+17 -> 17 | J21: 0 | K21: -50 | L21: -1000 | M21: 0 | V21: 0 | W21: -50 | X21: -1000 | Y21: 1 | AB21: 0 | AC21: -50 | AD21: -1000 | AE21: 18 | AF21: 0 | AG21: -50 | AH21: -1000
A22: =$S$12+18 -> 18 | C22: =C4 -> 8.2 | D22: =D4 -> 0 | E22: =IF(D22<>"",E4+$B$10,"") -> 4 | G22: 8.2 | H22: 0 | I22: 4 | J22: 8.2 | K22: -2.176084444 | L22: -3.356286116 | M22: =ABS(M4-1) -> 1 | V22: 0 | W22: -50 | X22: -1000 | Y22: 1 | AB22: 0 | AC22: -50 | AD22: -1000 | AE22: 19 | AF22: 0 | AG22: -50 | AH22: -1000
A23: =$S$12+19 -> 19 | C23: =C5 -> 7.26073941 | D23: 3.810730011 | E23: =IF(D23<>"",E5+$B$10,"") -> 4.923076923 | G23: 7.26073941 | H23: 3.810730011 | I23: 4.923076923 | J23: 7.26073941 | K23: -5.875732834 | L23: -2.057696108 | M23: =ABS(M5-1) -> 1 | V23: 0 | W23: -50 | X23: -1000 | Y23: 1 | AB23: 0 | AC23: -50 | AD23: -1000 | AE23: 20 | AF23: 0 | AG23: -50 | AH23: -1000
A24: =$S$12+20 -> 20 | C24: =C6 -> 4.658130923 | D24: 6.7484677 | E24: 5.846153846 | G24: 4.658130923 | H24: 6.7484677 | I24: 5.846153846 | J24: 4.658130923 | K24: -8.842878222 | L24: -1.234032352 | M24: 1 | V24: 0 | W24: -50 | X24: -1000 | Y24: 0 | AB24: 0 | AC24: -50 | AD24: -1000 | AE24: 21 | AF24: 0 | AG24: -50 | AH24: -1000
A25: =$S$12+21 -> 21 | C25: =C7 -> 0.9884007781 | D25: 8.140212768 | E25: 6.769230769 | G25: 0.9884007781 | H25: 8.140212768 | I25: 6.769230769 | J25: 0.9884007781 | K25: -10.51282522 | L25: -1.25142122 | M25: 1 | V25: 0 | W25: -50 | X25: -1000 | Y25: 0 | AB25: 0 | AC25: -50 | AD25: -1000 | AE25: 22 | AF25: 0 | AG25: -50 | AH25: -1000
A26: =$S$12+22 -> 22 | C26: =C8 -> -2.907760074 | D26: 7.66713319 | E26: 7.692307692 | G26: -2.907760074 | H26: 7.66713319 | I26: 7.692307692 | J26: -2.907760074 | K26: -10.61805095 | L26: -2.283314062 | M26: 1 | V26: 0 | W26: -50 | X26: -1000 | Y26: 0 | AB26: 0 | AC26: -50 | AD26: -1000 | AE26: 23 | AF26: 0 | AG26: -50 | AH26: -1000
A27: =$S$12+23 -> 23 | C27: =C9 -> -6.137788135 | D27: 5.437605798 | E27: 8.615384615 | G27: -6.137788135 | H27: 5.437605798 | I27: 8.615384615 | J27: -6.137788135 | K27: -9.24949132 | L27: -4.270751596 | M27: 1 | V27: 0 | W27: -50 | X27: -1000 | Y27: 0 | AB27: 0 | AC27: -50 | AD27: -1000 | AE27: 24 | AF27: 0 | AG27: -50 | AH27: -1000
A28: =$S$12+24 -> 24 | C28: =C10 -> -7.961722903 | D28: 1.962388447 | E28: 9.538461538 | G28: -7.961722903 | H28: 1.962388447 | I28: 9.538461538 | J28: -7.961722903 | K28: -6.835708717 | L28: -6.935870765 | M28: 1 | V28: 0 | W28: -50 | X28: -1000 | Y28: 0 | AB28: 0 | AC28: -50 | AD28: -1000 | AE28: 25 | AF28: 0 | AG28: -50 | AH28: -1000
A29: =$S$12+25 -> 25 | C29: =C11 -> -7.961722903 | D29: -1.962388447 | E29: 10.46153846 | G29: -7.961722903 | H29: -1.962388447 | I29: 10.46153846 | J29: -7.961722903 | K29: -4.0447135 | L29: -9.845559816 | M29: 1 | V29: 0 | W29: -50 | X29: -1000 | Y29: 1 | AB29: 0 | AC29: -50 | AD29: -1000 | AE29: 26 | AF29: 0 | AG29: -50 | AH29: -1000
A30: =$S$12+26 -> 26 | C30: =C12 -> -6.137788135 | D30: -5.437605798 | E30: 11.38461538 | G30: -6.137788135 | H30: -5.437605798 | I30: 11.38461538 | J30: -6.137788135 | K30: -1.630930898 | L30: -12.51067899 | M30: 1 | V30: 0 | W30: -50 | X30: -1000 | Y30: 1 | AB30: 0 | AC30: -50 | AD30: -1000 | AE30: 27 | AF30: 0 | AG30: -50 | AH30: -1000
A31: =$S$12+27 -> 27 | C31: =C13 -> -2.907760074 | D31: -7.66713319 | E31: 12.30769231 | G31: -2.907760074 | H31: -7.66713319 | I31: 12.30769231 | J31: -2.907760074 | K31: -0.2623712723 | L31: -14.49811652 | M31: 1 | V31: 0 | W31: -50 | X31: -1000 | Y31: 1 | AB31: 0 | AC31: -50 | AD31: -1000 | AE31: 28 | AF31: 0 | AG31: -50 | AH31: -1000
A32: =$S$12+28 -> 28 | C32: =C14 -> 0.9884007781 | D32: -8.140212768 | E32: 13.23076923 | G32: 0.9884007781 | H32: -8.140212768 | I32: 13.23076923 | J32: 0.9884007781 | K32: -0.3675970009 | L32: -15.53000936 | M32: 1 | V32: 0 | W32: -50 | X32: -1000 | Y32: 1 | AB32: 0 | AC32: -50 | AD32: -1000 | AE32: 29 | AF32: 0 | AG32: -50 | AH32: -1000
A33: =$S$12+29 -> 29 | C33: =C15 -> 4.658130923 | D33: -6.7484677 | E33: 14.15384615 | G33: 4.658130923 | H33: -6.7484677 | I33: 14.15384615 | J33: 4.658130923 | K33: -2.037543996 | L33: -15.54739823 | M33: 1 | V33: 0 | W33: -50 | X33: -1000 | Y33: 1 | AB33: 0 | AC33: -50 | AD33: -1000 | AE33: 30 | AF33: 0 | AG33: -50 | AH33: -1000
A34: =$S$12+30 -> 30 | C34: =C16 -> 7.26073941 | D34: -3.810730011 | E34: 15.07692308 | G34: 7.26073941 | H34: -3.810730011 | I34: 15.07692308 | J34: 7.26073941 | K34: -5.004689384 | L34: -14.72373447 | M34: 1 | V34: 0 | W34: -50 | X34: -1000 | Y34: 0 | AB34: 0 | AC34: -50 | AD34: -1000 | AE34: 31 | AF34: 0 | AG34: -50 | AH34: -1000
A35: =$S$12+31 -> 31 | C35: =C17 ->  | J35: 0 | K35: -50 | L35: -1000 | M35: 1 | V35: 0 | W35: -50 | X35: -1000 | Y35: 0 | AB35: 0 | AC35: -50 | AD35: -1000 | AE35: 32 | AF35: 0 | AG35: -50 | AH35: -1000
A36: =$S$12+32 -> 32 | C36: =C18 ->  | J36: 0 | K36: -50 | L36: -1000 | M36: 1 | V36: 0 | W36: -50 | X36: -1000 | Y36: 0 | AB36: 0 | AC36: -50 | AD36: -1000 | AE36: 33 | AF36: 0 | AG36: -50 | AH36: -1000
A37: =$S$12+33 -> 33 | C37: =C19 ->  | J37: 0 | K37: -50 | L37: -1000 | M37: 1 | V37: 0 | W37: -50 | X37: -1000 | Y37: 0 | AB37: 0 | AC37: -50 | AD37: -1000 | AE37: 34 | AF37: 0 | AG37: -50 | AH37: -1000
A38: =$S$12+34 -> 34 | C38: =C20 ->  | J38: 0 | K38: -50 | L38: -1000 | M38: 1 | V38: 0 | W38: -50 | X38: -1000 | Y38: 0 | AB38: 0 | AC38: -50 | AD38: -1000 | AE38: 35 | AF38: 0 | AG38: -50 | AH38: -1000
A39: =$S$12+35 -> 35 | J39: 0 | K39: -50 | L39: -1000 | M39: 1 | V39: 0 | W39: -50 | X39: -1000 | Y39: 1 | AB39: 0 | AC39: -50 | AD39: -1000 | AE39: 36 | AF39: 0 | AG39: -50 | AH39: -1000
A40: =$S$12+36 -> 36 | C40: =C22 -> 8.2 | D40: =D22 -> 0 | E40: =IF(D40<>"",E22+$B$10,"") -> 8 | G40: 8.2 | H40: 0 | I40: 8 | J40: 8.2 | K40: -4.352168887 | L40: -6.712572233 | M40: 0 | V40: 0 | W40: -50 | X40: -1000 | Y40: 1 | AB40: 0 | AC40: -50 | AD40: -1000 | AE40: 37 | AF40: 0 | AG40: -50 | AH40: -1000
A41: =$S$12+37 -> 37 | C41: =C23 -> 7.26073941 | D41: 3.810730011 | E41: =IF(D41<>"",E23+$B$10,"") -> 8.923076923 | G41: 7.26073941 | H41: 3.810730011 | I41: 8.923076923 | J41: 7.26073941 | K41: -8.051817277 | L41: -5.413982224 | M41: 0 | V41: 0 | W41: -50 | X41: -1000 | Y41: 1 | AB41: 0 | AC41: -50 | AD41: -1000 | AE41: 38 | AF41: 0 | AG41: -50 | AH41: -1000
A42: =$S$12+38 -> 38 | C42: =C24 -> 4.658130923 | D42: 6.7484677 | E42: 9.846153846 | G42: 4.658130923 | H42: 6.7484677 | I42: 9.846153846 | J42: 4.658130923 | K42: -11.01896267 | L42: -4.590318468 | M42: 0 | V42: 0 | W42: -50 | X42: -1000 | Y42: 1 | AB42: 0 | AC42: -50 | AD42: -1000 | AE42: 39 | AF42: 0 | AG42: -50 | AH42: -1000
A43: =$S$12+39 -> 39 | C43: =C25 -> 0.9884007781 | D43: 8.140212768 | E43: 10.76923077 | G43: 0.9884007781 | H43: 8.140212768 | I43: 10.76923077 | J43: 0.9884007781 | K43: -12.68890966 | L43: -4.607707336 | M43: 0 | V43: 0 | W43: -50 | X43: -1000 | Y43: 1 | AB43: 0 | AC43: -50 | AD43: -1000 | AE43: 40 | AF43: 0 | AG43: -50 | AH43: -1000
A44: =$S$12+40 -> 40 | C44: =C26 -> -2.907760074 | D44: 7.66713319 | E44: 11.69230769 | G44: -2.907760074 | H44: 7.66713319 | I44: 11.69230769 | J44: -2.907760074 | K44: -12.79413539 | L44: -5.639600178 | M44: 0 | V44: 0 | W44: -50 | X44: -1000 | Y44: 0 | AB44: 0 | AC44: -50 | AD44: -1000 | AE44: 41 | AF44: 0 | AG44: -50 | AH44: -1000
A45: =$S$12+41 -> 41 | C45: =C27 -> -6.137788135 | D45: 5.437605798 | E45: 12.61538462 | G45: -6.137788135 | H45: 5.437605798 | I45: 12.61538462 | J45: -6.137788135 | K45: -11.42557576 | L45: -7.627037713 | M45: 0 | V45: 0 | W45: -50 | X45: -1000 | Y45: 0 | AB45: 0 | AC45: -50 | AD45: -1000 | AE45: 42 | AF45: 0 | AG45: -50 | AH45: -1000
A46: =$S$12+42 -> 42 | C46: =C28 -> -7.961722903 | D46: 1.962388447 | E46: 13.53846154 | G46: -7.961722903 | H46: 1.962388447 | I46: 13.53846154 | J46: -7.961722903 | K46: -9.011793161 | L46: -10.29215688 | M46: 0 | V46: 0 | W46: -50 | X46: -1000 | Y46: 0 | AB46: 0 | AC46: -50 | AD46: -1000 | AE46: 43 | AF46: 0 | AG46: -50 | AH46: -1000
A47: =$S$12+43 -> 43 | C47: =C29 -> -7.961722903 | D47: -1.962388447 | E47: 14.46153846 | G47: -7.961722903 | H47: -1.962388447 | I47: 14.46153846 | J47: -7.961722903 | K47: -6.220797944 | L47: -13.20184593 | M47: 0 | V47: 0 | W47: -50 | X47: -1000 | Y47: 0 | AB47: 0 | AC47: -50 | AD47: -1000 | AE47: 44 | AF47: 0 | AG47: -50 | AH47: -1000
A48: =$S$12+44 -> 44 | C48: =C30 -> -6.137788135 | D48: -5.437605798 | E48: 15.38461538 | G48: -6.137788135 | H48: -5.437605798 | I48: 15.38461538 | J48: -6.137788135 | K48: -3.807015341 | L48: -15.8669651 | M48: 0 | V48: -2.907760074 | W48: -25.85064205 | X48: -25.77731688 | Y48: 0 | AB48: -2.907760074 | AC48: -25.85064205 | AD48: -1000 | AE48: 45 | AF48: -2.907760074 | AG48: -25.85064205 | AH48: -25.77731688
A49: =$S$12+45 -> 45 | C49: =C31 -> -2.907760074 | D49: -7.66713319 | E49: 16.30769231 | G49: -2.907760074 | H49: -7.66713319 | I49: 16.30769231 | J49: -2.907760074 | K49: -2.438455716 | L49: -17.85440264 | M49: 0 | V49: 0.9884007781 | W49: -25.74541632 | X49: -24.74542403 | Y49: 0 | AB49: 0.9884007781 | AC49: -25.74541632 | AD49: -1000 | AE49: 46 | AF49: 0.9884007781 | AG49: -25.74541632 | AH49: -24.74542403
A50: =$S$12+46 -> 46 | C50: =C32 -> 0.9884007781 | D50: -8.140212768 | E50: 17.23076923 | G50: 0.9884007781 | H50: -8.140212768 | I50: 17.23076923 | J50: 0.9884007781 | K50: -2.543681444 | L50: -18.88629548 | M50: 0 | V50: -6.137788135 | W50: -24.48208243 | X50: -27.76475441 | Y50: 0 | AB50: -6.137788135 | AC50: -24.48208243 | AD50: -1000 | AE50: 47 | AF50: -6.137788135 | AG50: -24.48208243 | AH50: -27.76475441
A51: =$S$12+47 -> 47 | C51: =C33 -> 4.658130923 | D51: -6.7484677 | E51: 18.15384615 | G51: 4.658130923 | H51: -6.7484677 | I51: 18.15384615 | J51: 4.658130923 | K51: -4.213628439 | L51: -18.90368435 | M51: 0 | V51: 4.658130923 | W51: -24.07546933 | X51: -24.72803517 | Y51: 0 | AB51: 4.658130923 | AC51: -24.07546933 | AD51: -1000 | AE51: 48 | AF51: 4.658130923 | AG51: -24.07546933 | AH51: -24.72803517
A52: =$S$12+48 -> 48 | C52: =C34 -> 7.26073941 | D52: -3.810730011 | E52: 19.07692308 | G52: 7.26073941 | H52: -3.810730011 | I52: 19.07692308 | J52: 7.26073941 | K52: -7.180773828 | L52: -18.08002059 | M52: 0 | V52: -2.907760074 | W52: -23.67455761 | X52: -22.42103076 | Y52: 1 | AB52: -2.907760074 | AC52: -23.67455761 | AD52: -22.42103076 | AE52: 49 | AF52: -2.907760074 | AG52: -23.67455761 | AH52: -1000
A53: =$S$12+49 -> 49 | C53: =C35 ->  | J53: 0 | K53: -50 | L53: -1000 | M53: 0 | V53: 0.9884007781 | W53: -23.56933188 | X53: -21.38913792 | Y53: 1 | AB53: 0.9884007781 | AC53: -23.56933188 | AD53: -21.38913792 | AE53: 50 | AF53: 0.9884007781 | AG53: -23.56933188 | AH53: -1000
A54: =$S$12+50 -> 50 | C54: =C36 ->  | J54: 0 | K54: -50 | L54: -1000 | M54: 0 | V54: -6.137788135 | W54: -22.30599798 | X54: -24.40846829 | Y54: 1 | AB54: -6.137788135 | AC54: -22.30599798 | AD54: -24.40846829 | AE54: 51 | AF54: -6.137788135 | AG54: -22.30599798 | AH54: -1000
A55: =$S$12+51 -> 51 | C55: =C37 ->  | J55: 0 | K55: -50 | L55: -1000 | M55: 0 | V55: -7.961722903 | W55: -22.06829982 | X55: -30.42987358 | Y55: 0 | AB55: -7.961722903 | AC55: -22.06829982 | AD55: -1000 | AE55: 52 | AF55: -7.961722903 | AG55: -22.06829982 | AH55: -30.42987358
A56: =$S$12+52 -> 52 | C56: =C38 ->  | J56: 0 | K56: -50 | L56: -1000 | M56: 0 | V56: 4.658130923 | W56: -21.89938488 | X56: -21.37174905 | Y56: 1 | AB56: 4.658130923 | AC56: -21.89938488 | AD56: -21.37174905 | AE56: 53 | AF56: 4.658130923 | AG56: -21.89938488 | AH56: -1000
A57: =$S$12+53 -> 53 | J57: 0 | K57: -50 | L57: -1000 | M57: 0 | V57: -2.907760074 | W57: -21.49847316 | X57: -19.06474464 | Y57: 0 | AB57: -2.907760074 | AC57: -21.49847316 | AD57: -1000 | AE57: 54 | AF57: -2.907760074 | AG57: -21.49847316 | AH57: -19.06474464
A58: =$S$12+54 -> 54 | C58: =C40 -> 8.2 | D58: =D40 -> 0 | E58: =IF(D58<>"",E40+$B$10,"") -> 12 | G58: 8.2 | H58: 0 | I58: 12 | J58: 8.2 | K58: -6.528253331 | L58: -10.06885835 | M58: 1 | V58: 0.9884007781 | W58: -21.39324743 | X58: -18.0328518 | Y58: 0 | AB58: 0.9884007781 | AC58: -21.39324743 | AD58: -1000 | AE58: 55 | AF58: 0.9884007781 | AG58: -21.39324743 | AH58: -18.0328518
A59: =$S$12+55 -> 55 | C59: =C41 -> 7.26073941 | D59: 3.810730011 | E59: =IF(D59<>"",E41+$B$10,"") -> 12.92307692 | G59: 7.26073941 | H59: 3.810730011 | I59: 12.92307692 | J59: 7.26073941 | K59: -10.22790172 | L59: -8.77026834 | M59: 1 | V59: 7.26073941 | W59: -21.10832394 | X59: -25.55169892 | Y59: 0 | AB59: 7.26073941 | AC59: -21.10832394 | AD59: -1000 | AE59: 56 | AF59: 7.26073941 | AG59: -21.10832394 | AH59: -25.55169892
A60: =$S$12+56 -> 56 | C60: =C42 -> 4.658130923 | D60: 6.7484677 | E60: 13.84615385 | G60: 4.658130923 | H60: 6.7484677 | I60: 13.84615385 | J60: 4.658130923 | K60: -13.19504711 | L60: -7.946604584 | M60: 1 | V60: 7.26073941 | W60: -20.23728049 | X60: -38.21773729 | Y60: 0 | AB60: 7.26073941 | AC60: -20.23728049 | AD60: -1000 | AE60: 57 | AF60: 7.26073941 | AG60: -20.23728049 | AH60: -38.21773729
A61: =$S$12+57 -> 57 | C61: =C43 -> 0.9884007781 | D61: 8.140212768 | E61: 14.76923077 | G61: 0.9884007781 | H61: 8.140212768 | I61: 14.76923077 | J61: 0.9884007781 | K61: -14.8649941 | L61: -7.963993452 | M61: 1 | V61: -6.137788135 | W61: -20.12991354 | X61: -21.05218218 | Y61: 0 | AB61: -6.137788135 | AC61: -20.12991354 | AD61: -1000 | AE61: 58 | AF61: -6.137788135 | AG61: -20.12991354 | AH61: -21.05218218
A62: =$S$12+58 -> 58 | C62: =C44 -> -2.907760074 | D62: 7.66713319 | E62: 15.69230769 | G62: -2.907760074 | H62: 7.66713319 | I62: 15.69230769 | J62: -2.907760074 | K62: -14.97021983 | L62: -8.995886295 | M62: 1 | V62: -7.961722903 | W62: -19.89221538 | X62: -27.07358746 | Y62: 1 | AB62: -7.961722903 | AC62: -19.89221538 | AD62: -27.07358746 | AE62: 59 | AF62: -7.961722903 | AG62: -19.89221538 | AH62: -1000
A63: =$S$12+59 -> 59 | C63: =C45 -> -6.137788135 | D63: 5.437605798 | E63: 16.61538462 | G63: -6.137788135 | H63: 5.437605798 | I63: 16.61538462 | J63: -6.137788135 | K63: -13.60166021 | L63: -10.98332383 | M63: 1 | V63: 4.658130923 | W63: -19.72330044 | X63: -18.01546293 | Y63: 0 | AB63: 4.658130923 | AC63: -19.72330044 | AD63: -1000 | AE63: 60 | AF63: 4.658130923 | AG63: -19.72330044 | AH63: -18.01546293
A64: =$S$12+60 -> 60 | C64: =C46 -> -7.961722903 | D64: 1.962388447 | E64: 17.53846154 | G64: -7.961722903 | H64: 1.962388447 | I64: 17.53846154 | J64: -7.961722903 | K64: -11.1878776 | L64: -13.648443 | M64: 1 | V64: -2.907760074 | W64: -19.32238872 | X64: -15.70845853 | Y64: 1 | AB64: -2.907760074 | AC64: -19.32238872 | AD64: -15.70845853 | AE64: 61 | AF64: -2.907760074 | AG64: -19.32238872 | AH64: -1000
A65: =$S$12+61 -> 61 | C65: =C47 -> -7.961722903 | D65: -1.962388447 | E65: 18.46153846 | G65: -7.961722903 | H65: -1.962388447 | I65: 18.46153846 | J65: -7.961722903 | K65: -8.396882388 | L65: -16.55813205 | M65: 1 | V65: -7.961722903 | W65: -19.27730461 | X65: -33.33956263 | Y65: 0 | AB65: -7.961722903 | AC65: -19.27730461 | AD65: -1000 | AE65: 62 | AF65: -7.961722903 | AG65: -19.27730461 | AH65: -33.33956263
A66: =$S$12+62 -> 62 | C66: =C48 -> -6.137788135 | D66: -5.437605798 | E66: 19.38461538 | G66: -6.137788135 | H66: -5.437605798 | I66: 19.38461538 | J66: -6.137788135 | K66: -5.983099785 | L66: -19.22325122 | M66: 1 | V66: 0.9884007781 | W66: -19.21716299 | X66: -14.67656568 | Y66: 1 | AB66: 0.9884007781 | AC66: -19.21716299 | AD66: -14.67656568 | AE66: 63 | AF66: 0.9884007781 | AG66: -19.21716299 | AH66: -1000
A67: =$S$12+63 -> 63 | C67: =C49 -> -2.907760074 | D67: -7.66713319 | E67: 20.30769231 | G67: -2.907760074 | H67: -7.66713319 | I67: 20.30769231 | J67: -2.907760074 | K67: -4.614540159 | L67: -21.21068875 | M67: 1 | V67: 7.26073941 | W67: -18.9322395 | X67: -22.19541281 | Y67: 1 | AB67: 7.26073941 | AC67: -18.9322395 | AD67: -22.19541281 | AE67: 64 | AF67: 7.26073941 | AG67: -18.9322395 | AH67: -1000
A68: =$S$12+64 -> 64 | C68: =C50 -> 0.9884007781 | D68: -8.140212768 | E68: 21.23076923 | G68: 0.9884007781 | H68: -8.140212768 | I68: 21.23076923 | J68: 0.9884007781 | K68: -4.719765888 | L68: -22.24258159 | M68: 1 | V68: 7.26073941 | W68: -18.06119605 | X68: -34.86145117 | Y68: 1 | AB68: 7.26073941 | AC68: -18.06119605 | AD68: -34.86145117 | AE68: 65 | AF68: 7.26073941 | AG68: -18.06119605 | AH68: -1000
A69: =$S$12+65 -> 65 | C69: =C51 -> 4.658130923 | D69: -6.7484677 | E69: 22.15384615 | G69: =IF(C69<>"",C69*COS($B$13)-E69*SIN($B$13),"") -> 4.658130923 | H69: =IF(C69<>"",D69,"") -> -6.7484677 | I69: =IF(C69<>"",C69*SIN($B$13)+E69*COS($B$13),"") -> 22.15384615 | J69: =IF(C69<>"",G69,0) -> 4.658130923 | K69: =IF(C69<>"",H69*COS($B$16)-I69*SIN($B$16),$N$4) -> -6.389712883 | L69: =IF(C69<>"",H69*SIN($B$16)+I69*COS($B$16),-1000) -> -22.25997046 | M69: 1 | V69: -6.137788135 | W69: -17.95382909 | X69: -17.69589606 | Y69: 1 | AB69: =V69 -> -6.137788135 | AC69: =W69 -> -17.95382909 | AD69: =IF(Y69=0,-1000,X69) -> -17.69589606 | AE69: 66 | AF69: =V69 -> -6.137788135 | AG69: =W69 -> -17.95382909 | AH69: =IF(Y69=1,-1000,X69) -> -1000
A70: =$S$12+66 -> 66 | C70: =C52 -> 7.26073941 | D70: -3.810730011 | E70: 23.07692308 | G70: 7.26073941 | H70: -3.810730011 | I70: 23.07692308 | J70: 7.26073941 | K70: -9.356858271 | L70: -21.43630671 | M70: 1 | V70: -7.961722903 | W70: -17.71613094 | X70: -23.71730135 | Y70: 0 | AB70: -7.961722903 | AC70: -17.71613094 | AD70: -1000 | AE70: 67 | AF70: -7.961722903 | AG70: -17.71613094 | AH70: -23.71730135
A71: =$S$12+67 -> 67 | C71: =C53 ->  | J71: 0 | K71: -50 | L71: -1000 | M71: 1 | V71: 4.658130923 | W71: -17.547216 | X71: -14.65917682 | Y71: 1 | AB71: 4.658130923 | AC71: -17.547216 | AD71: -14.65917682 | AE71: 68 | AF71: 4.658130923 | AG71: -17.547216 | AH71: -1000
A72: =$S$12+68 -> 68 | C72: =C54 ->  | J72: 0 | K72: -50 | L72: -1000 | M72: 1 | V72: 8.2 | W72: -17.40867555 | X72: -26.85028893 | Y72: 0 | AB72: 8.2 | AC72: -17.40867555 | AD72: -1000 | AE72: 69 | AF72: 8.2 | AG72: -17.40867555 | AH72: -26.85028893
A73: =$S$12+69 -> 69 | C73: =C55 ->  | J73: 0 | K73: -50 | L73: -1000 | M73: 1 | V73: 4.658130923 | W73: -17.2701351 | X73: -39.04140104 | Y73: 0 | AB73: 4.658130923 | AC73: -17.2701351 | AD73: -1000 | AE73: 70 | AF73: 4.658130923 | AG73: -17.2701351 | AH73: -39.04140104
A74: =$S$12+70 -> 70 | C74: =C56 ->  | J74: 0 | K74: -50 | L74: -1000 | M74: 1 | V74: -2.907760074 | W74: -17.14630428 | X74: -12.35217241 | Y74: 0 | AB74: -2.907760074 | AC74: -17.14630428 | AD74: -1000 | AE74: 71 | AF74: -2.907760074 | AG74: -17.14630428 | AH74: -12.35217241
A75: =$S$12+71 -> 71 | J75: 0 | K75: -50 | L75: -1000 | M75: 1 | V75: -7.961722903 | W75: -17.10122016 | X75: -29.98327651 | Y75: 1 | AB75: -7.961722903 | AC75: -17.10122016 | AD75: -29.98327651 | AE75: 72 | AF75: -7.961722903 | AG75: -17.10122016 | AH75: -1000
A76: =$S$12+72 -> 72 | C76: =C58 -> 8.2 | D76: =D58 -> 0 | E76: =IF(D76<>"",E58+$B$10,"") -> 16 | G76: 8.2 | H76: 0 | I76: 16 | J76: 8.2 | K76: -8.704337774 | L76: -13.42514447 | M76: 0 | V76: 0.9884007781 | W76: -17.04107855 | X76: -11.32027957 | Y76: 0 | AB76: 0.9884007781 | AC76: -17.04107855 | AD76: -1000 | AE76: 73 | AF76: 0.9884007781 | AG76: -17.04107855 | AH76: -11.32027957
A77: =$S$12+73 -> 73 | C77: =C59 -> 7.26073941 | D77: 3.810730011 | E77: =IF(D77<>"",E59+$B$10,"") -> 16.92307692 | G77: 7.26073941 | H77: 3.810730011 | I77: 16.92307692 | J77: 7.26073941 | K77: -12.40398616 | L77: -12.12655446 | M77: 0 | V77: -6.137788135 | W77: -16.863522 | X77: -36.0046818 | Y77: 0 | AB77: -6.137788135 | AC77: -16.863522 | AD77: -1000 | AE77: 74 | AF77: -6.137788135 | AG77: -16.863522 | AH77: -36.0046818
A78: =$S$12+74 -> 74 | C78: =C60 -> 4.658130923 | D78: 6.7484677 | E78: 17.84615385 | G78: 4.658130923 | H78: 6.7484677 | I78: 17.84615385 | J78: 4.658130923 | K78: -15.37113155 | L78: -11.3028907 | M78: 0 | V78: 7.26073941 | W78: -16.75615505 | X78: -18.83912669 | Y78: 0 | AB78: 7.26073941 | AC78: -16.75615505 | AD78: -1000 | AE78: 75 | AF78: 7.26073941 | AG78: -16.75615505 | AH78: -18.83912669
A79: =$S$12+75 -> 75 | C79: =C61 -> 0.9884007781 | D79: 8.140212768 | E79: 18.76923077 | G79: 0.9884007781 | H79: 8.140212768 | I79: 18.76923077 | J79: 0.9884007781 | K79: -17.04107855 | L79: -11.32027957 | M79: 0 | V79: 7.26073941 | W79: -15.8851116 | X79: -31.50516506 | Y79: 0 | AB79: 7.26073941 | AC79: -15.8851116 | AD79: -1000 | AE79: 76 | AF79: 7.26073941 | AG79: -15.8851116 | AH79: -31.50516506
A80: =$S$12+76 -> 76 | C80: =C62 -> -2.907760074 | D80: 7.66713319 | E80: 19.69230769 | G80: -2.907760074 | H80: 7.66713319 | I80: 19.69230769 | J80: -2.907760074 | K80: -17.14630428 | L80: -12.35217241 | M80: 0 | V80: -6.137788135 | W80: -15.77774465 | X80: -14.33960995 | Y80: 0 | AB80: -6.137788135 | AC80: -15.77774465 | AD80: -1000 | AE80: 77 | AF80: -6.137788135 | AG80: -15.77774465 | AH80: -14.33960995
A81: =$S$12+77 -> 77 | C81: =C63 -> -6.137788135 | D81: 5.437605798 | E81: 20.61538462 | G81: -6.137788135 | H81: 5.437605798 | I81: 20.61538462 | J81: -6.137788135 | K81: -15.77774465 | L81: -14.33960995 | M81: 0 | V81: 0.9884007781 | W81: -15.60018811 | X81: -39.02401218 | Y81: 0 | AB81: 0.9884007781 | AC81: -15.60018811 | AD81: -1000 | AE81: 78 | AF81: 0.9884007781 | AG81: -15.60018811 | AH81: -39.02401218
A82: =$S$12+78 -> 78 | C82: =C64 -> -7.961722903 | D82: 1.962388447 | E82: 21.53846154 | G82: -7.961722903 | H82: 1.962388447 | I82: 21.53846154 | J82: -7.961722903 | K82: -13.36396205 | L82: -17.00472911 | M82: 0 | V82: -7.961722903 | W82: -15.54004649 | X82: -20.36101523 | Y82: 1 | AB82: -7.961722903 | AC82: -15.54004649 | AD82: -20.36101523 | AE82: 79 | AF82: -7.961722903 | AG82: -15.54004649 | AH82: -1000
A83: =$S$12+79 -> 79 | C83: =C65 -> -7.961722903 | D83: -1.962388447 | E83: 22.46153846 | G83: -7.961722903 | H83: -1.962388447 | I83: 22.46153846 | J83: -7.961722903 | K83: -10.57296683 | L83: -19.91441817 | M83: 0 | V83: -2.907760074 | W83: -15.49496238 | X83: -37.99211933 | Y83: 0 | AB83: -2.907760074 | AC83: -15.49496238 | AD83: -1000 | AE83: 80 | AF83: -2.907760074 | AG83: -15.49496238 | AH83: -37.99211933
A84: =$S$12+80 -> 80 | C84: =C66 -> -6.137788135 | D84: -5.437605798 | E84: 23.38461538 | G84: -6.137788135 | H84: -5.437605798 | I84: 23.38461538 | J84: -6.137788135 | K84: -8.159184228 | L84: -22.57953733 | M84: 0 | V84: 4.658130923 | W84: -15.37113155 | X84: -11.3028907 | Y84: 0 | AB84: 4.658130923 | AC84: -15.37113155 | AD84: -1000 | AE84: 81 | AF84: 4.658130923 | AG84: -15.37113155 | AH84: -11.3028907
A85: =$S$12+81 -> 81 | C85: =C67 -> -2.907760074 | D85: -7.66713319 | E85: 24.30769231 | G85: -2.907760074 | H85: -7.66713319 | I85: 24.30769231 | J85: -2.907760074 | K85: -6.790624603 | L85: -24.56697487 | M85: 0 | V85: 8.2 | W85: -15.2325911 | X85: -23.49400281 | Y85: 1 | AB85: 8.2 | AC85: -15.2325911 | AD85: -23.49400281 | AE85: 82 | AF85: 8.2 | AG85: -15.2325911 | AH85: -1000
A86: =$S$12+82 -> 82 | C86: =C68 -> 0.9884007781 | D86: -8.140212768 | E86: 25.23076923 | G86: 0.9884007781 | H86: -8.140212768 | I86: 25.23076923 | J86: 0.9884007781 | K86: -6.895850332 | L86: -25.59886771 | M86: 0 | V86: 4.658130923 | W86: -15.09405066 | X86: -35.68511493 | Y86: 1 | AB86: 4.658130923 | AC86: -15.09405066 | AD86: -35.68511493 | AE86: 83 | AF86: 4.658130923 | AG86: -15.09405066 | AH86: -1000
A87: =$S$12+83 -> 83 | C87: =C69 -> 4.658130923 | D87: -6.7484677 | E87: 26.15384615 | G87: 4.658130923 | H87: -6.7484677 | I87: 26.15384615 | J87: 4.658130923 | K87: -8.565797326 | L87: -25.61625658 | M87: =ABS(M69-1) -> 0 | V87: -2.907760074 | W87: -14.97021983 | X87: -8.995886295 | Y87: 1 | AB87: -2.907760074 | AC87: -14.97021983 | AD87: -8.995886295 | AE87: 84 | AF87: -2.907760074 | AG87: -14.97021983 | AH87: -1000
A88: =$S$12+84 -> 84 | C88: =C70 -> 7.26073941 | D88: -3.810730011 | E88: 27.07692308 | G88: 7.26073941 | H88: -3.810730011 | I88: 27.07692308 | J88: 7.26073941 | K88: -11.53294271 | L88: -24.79259282 | M88: 0 | V88: -7.961722903 | W88: -14.92513572 | X88: -26.6269904 | Y88: 0 | AB88: -7.961722903 | AC88: -14.92513572 | AD88: -1000 | AE88: 85 | AF88: -7.961722903 | AG88: -14.92513572 | AH88: -26.6269904
A89: =$S$12+85 -> 85 | C89: =C71 ->  | J89: 0 | K89: -50 | L89: -1000 | M89: 0 | V89: 0.9884007781 | W89: -14.8649941 | X89: -7.963993452 | Y89: 1 | AB89: 0.9884007781 | AC89: -14.8649941 | AD89: -7.963993452 | AE89: 86 | AF89: 0.9884007781 | AG89: -14.8649941 | AH89: -1000
A90: =$S$12+86 -> 86 | C90: =C72 ->  | J90: 0 | K90: -50 | L90: -1000 | M90: 0 | V90: -6.137788135 | W90: -14.68743756 | X90: -32.64839568 | Y90: 1 | AB90: -6.137788135 | AC90: -14.68743756 | AD90: -32.64839568 | AE90: 87 | AF90: -6.137788135 | AG90: -14.68743756 | AH90: -1000
A91: =$S$12+87 -> 87 | C91: =C73 ->  | J91: 0 | K91: -50 | L91: -1000 | M91: 0 | V91: 7.26073941 | W91: -14.58007061 | X91: -15.48284057 | Y91: 1 | AB91: 7.26073941 | AC91: -14.58007061 | AD91: -15.48284057 | AE91: 88 | AF91: 7.26073941 | AG91: -14.58007061 | AH91: -1000
A92: =$S$12+88 -> 88 | C92: =C74 ->  | J92: 0 | K92: -50 | L92: -1000 | M92: 0 | V92: 7.26073941 | W92: -13.70902716 | X92: -28.14887894 | Y92: 1 | AB92: 7.26073941 | AC92: -13.70902716 | AD92: -28.14887894 | AE92: 89 | AF92: 7.26073941 | AG92: -13.70902716 | AH92: -1000
A93: =$S$12+89 -> 89 | J93: 0 | K93: -50 | L93: -1000 | M93: 0 | V93: -6.137788135 | W93: -13.60166021 | X93: -10.98332383 | Y93: 1 | AB93: -6.137788135 | AC93: -13.60166021 | AD93: -10.98332383 | AE93: 90 | AF93: -6.137788135 | AG93: -13.60166021 | AH93: -1000
A94: =$S$12+90 -> 90 | C94: =C76 -> 8.2 | D94: =D76 -> 0 | E94: =IF(D94<>"",E76+$B$10,"") -> 20 | G94: 8.2 | H94: 0 | I94: 20 | J94: 8.2 | K94: -10.88042222 | L94: -16.78143058 | M94: 1 | V94: 0.9884007781 | W94: -13.42410366 | X94: -35.66772606 | Y94: 1 | AB94: 0.9884007781 | AC94: -13.42410366 | AD94: -35.66772606 | AE94: 91 | AF94: 0.9884007781 | AG94: -13.42410366 | AH94: -1000
A95: =$S$12+91 -> 91 | C95: =C77 -> 7.26073941 | D95: 3.810730011 | E95: =IF(D95<>"",E77+$B$10,"") -> 20.92307692 | G95: 7.26073941 | H95: 3.810730011 | I95: 20.92307692 | J95: 7.26073941 | K95: -14.58007061 | L95: -15.48284057 | M95: 1 | V95: -7.961722903 | W95: -13.36396205 | X95: -17.00472911 | Y95: 0 | AB95: -7.961722903 | AC95: -13.36396205 | AD95: -1000 | AE95: 92 | AF95: -7.961722903 | AG95: -13.36396205 | AH95: -17.00472911
A96: =$S$12+92 -> 92 | C96: =C78 -> 4.658130923 | D96: 6.7484677 | E96: 21.84615385 | G96: 4.658130923 | H96: 6.7484677 | I96: 21.84615385 | J96: 4.658130923 | K96: -17.547216 | L96: -14.65917682 | M96: 1 | V96: -2.907760074 | W96: -13.31887793 | X96: -34.63583322 | Y96: 1 | AB96: -2.907760074 | AC96: -13.31887793 | AD96: -34.63583322 | AE96: 93 | AF96: -2.907760074 | AG96: -13.31887793 | AH96: -1000
A97: =$S$12+93 -> 93 | C97: =C79 -> 0.9884007781 | D97: 8.140212768 | E97: 22.76923077 | G97: 0.9884007781 | H97: 8.140212768 | I97: 22.76923077 | J97: 0.9884007781 | K97: -19.21716299 | L97: -14.67656568 | M97: 1 | V97: 4.658130923 | W97: -13.19504711 | X97: -7.946604584 | Y97: 1 | AB97: 4.658130923 | AC97: -13.19504711 | AD97: -7.946604584 | AE97: 94 | AF97: 4.658130923 | AG97: -13.19504711 | AH97: -1000
A98: =$S$12+94 -> 94 | C98: =C80 -> -2.907760074 | D98: 7.66713319 | E98: 23.69230769 | G98: -2.907760074 | H98: 7.66713319 | I98: 23.69230769 | J98: -2.907760074 | K98: -19.32238872 | L98: -15.70845853 | M98: 1 | V98: 8.2 | W98: -13.05650666 | X98: -20.1377167 | Y98: 0 | AB98: 8.2 | AC98: -13.05650666 | AD98: -1000 | AE98: 95 | AF98: 8.2 | AG98: -13.05650666 | AH98: -20.1377167
A99: =$S$12+95 -> 95 | C99: =C81 -> -6.137788135 | D99: 5.437605798 | E99: 24.61538462 | G99: -6.137788135 | H99: 5.437605798 | I99: 24.61538462 | J99: -6.137788135 | K99: -17.95382909 | L99: -17.69589606 | M99: 1 | V99: 4.658130923 | W99: -12.91796621 | X99: -32.32882881 | Y99: 0 | AB99: 4.658130923 | AC99: -12.91796621 | AD99: -1000 | AE99: 96 | AF99: 4.658130923 | AG99: -12.91796621 | AH99: -32.32882881
A100: =$S$12+96 -> 96 | C100: =C82 -> -7.961722903 | D100: 1.962388447 | E100: 25.53846154 | G100: -7.961722903 | H100: 1.962388447 | I100: 25.53846154 | J100: -7.961722903 | K100: -15.54004649 | L100: -20.36101523 | M100: 1 | V100: -2.907760074 | W100: -12.79413539 | X100: -5.639600178 | Y100: 0 | AB100: -2.907760074 | AC100: -12.79413539 | AD100: -1000 | AE100: 97 | AF100: -2.907760074 | AG100: -12.79413539 | AH100: -5.639600178
A101: =$S$12+97 -> 97 | C101: =C83 -> -7.961722903 | D101: -1.962388447 | E101: 26.46153846 | G101: -7.961722903 | H101: -1.962388447 | I101: 26.46153846 | J101: -7.961722903 | K101: -12.74905127 | L101: -23.27070428 | M101: 1 | V101: -7.961722903 | W101: -12.74905127 | X101: -23.27070428 | Y101: 1 | AB101: -7.961722903 | AC101: -12.74905127 | AD101: -23.27070428 | AE101: 98 | AF101: -7.961722903 | AG101: -12.74905127 | AH101: -1000
A102: =$S$12+98 -> 98 | C102: =C84 -> -6.137788135 | D102: -5.437605798 | E102: 27.38461538 | G102: -6.137788135 | H102: -5.437605798 | I102: 27.38461538 | J102: -6.137788135 | K102: -10.33526867 | L102: -25.93582345 | M102: 1 | V102: 0.9884007781 | W102: -12.68890966 | X102: -4.607707336 | Y102: 0 | AB102: 0.9884007781 | AC102: -12.68890966 | AD102: -1000 | AE102: 99 | AF102: 0.9884007781 | AG102: -12.68890966 | AH102: -4.607707336
A103: =$S$12+97 -> 97 | C103: =C85 -> -2.907760074 | D103: -7.66713319 | E103: 28.30769231 | G103: -2.907760074 | H103: -7.66713319 | I103: 28.30769231 | J103: -2.907760074 | K103: -8.966709047 | L103: -27.92326098 | M103: 1 | V103: -6.137788135 | W103: -12.51135312 | X103: -29.29210957 | Y103: 0 | AB103: -6.137788135 | AC103: -12.51135312 | AD103: -1000 | AE103: 100 | AF103: -6.137788135 | AG103: -12.51135312 | AH103: -29.29210957
A104: =$S$12+98 -> 98 | C104: =C86 -> 0.9884007781 | D104: -8.140212768 | E104: 29.23076923 | G104: 0.9884007781 | H104: -8.140212768 | I104: 29.23076923 | J104: 0.9884007781 | K104: -9.071934775 | L104: -28.95515383 | M104: 1 | V104: 7.26073941 | W104: -12.40398616 | X104: -12.12655446 | Y104: 0 | AB104: 7.26073941 | AC104: -12.40398616 | AD104: -1000 | AE104: 101 | AF104: 7.26073941 | AG104: -12.40398616 | AH104: -12.12655446
A105: =$S$12+97 -> 97 | C105: =C87 -> 4.658130923 | D105: -6.7484677 | E105: 30.15384615 | G105: 4.658130923 | H105: -6.7484677 | I105: 30.15384615 | J105: 4.658130923 | K105: -10.74188177 | L105: -28.97254269 | M105: 1 | V105: 7.26073941 | W105: -11.53294271 | X105: -24.79259282 | Y105: 0 | AB105: 7.26073941 | AC105: -11.53294271 | AD105: -1000 | AE105: 102 | AF105: 7.26073941 | AG105: -11.53294271 | AH105: -24.79259282
A106: =$S$12+98 -> 98 | C106: =C88 -> 7.26073941 | D106: -3.810730011 | E106: 31.07692308 | G106: 7.26073941 | H106: -3.810730011 | I106: 31.07692308 | J106: 7.26073941 | K106: -13.70902716 | L106: -28.14887894 | M106: 1 | V106: -6.137788135 | W106: -11.42557576 | X106: -7.627037713 | Y106: 0 | AB106: -6.137788135 | AC106: -11.42557576 | AD106: -1000 | AE106: 103 | AF106: -6.137788135 | AG106: -11.42557576 | AH106: -7.627037713
A107: =$S$12+97 -> 97 | C107: =C89 ->  | J107: 0 | K107: -50 | L107: -1000 | M107: 1 | V107: 0.9884007781 | W107: -11.24801922 | X107: -32.31143994 | Y107: 0 | AB107: 0.9884007781 | AC107: -11.24801922 | AD107: -1000 | AE107: 104 | AF107: 0.9884007781 | AG107: -11.24801922 | AH107: -32.31143994
A108: =$S$12+98 -> 98 | C108: =C90 ->  | J108: 0 | K108: -50 | L108: -1000 | M108: 1 | V108: -7.961722903 | W108: -11.1878776 | X108: -13.648443 | Y108: 1 | AB108: -7.961722903 | AC108: -11.1878776 | AD108: -13.648443 | AE108: 105 | AF108: -7.961722903 | AG108: -11.1878776 | AH108: -1000
A109: =$S$12+97 -> 97 | C109: =C91 ->  | J109: 0 | K109: -50 | L109: -1000 | M109: 1 | V109: -2.907760074 | W109: -11.14279349 | X109: -31.2795471 | Y109: 0 | AB109: -2.907760074 | AC109: -11.14279349 | AD109: -1000 | AE109: 106 | AF109: -2.907760074 | AG109: -11.14279349 | AH109: -31.2795471
A110: =$S$12+98 -> 98 | C110: =C92 ->  | J110: 0 | K110: -50 | L110: -1000 | M110: 1 | V110: 4.658130923 | W110: -11.01896267 | X110: -4.590318468 | Y110: 0 | AB110: 4.658130923 | AC110: -11.01896267 | AD110: -1000 | AE110: 107 | AF110: 4.658130923 | AG110: -11.01896267 | AH110: -4.590318468
A111: 97 | G111: =IF(C111<>"",C111*COS($B$13)-E111*SIN($B$13),"") ->  | H111: =IF(C111<>"",D111,"") ->  | I111: =IF(C111<>"",C111*SIN($B$13)+E111*COS($B$13),"") ->  | J111: =IF(C111<>"",G111,0) -> 0 | K111: =IF(C111<>"",H111*COS($B$16)-I111*SIN($B$16),$N$4) -> -50 | L111: =IF(C111<>"",H111*SIN($B$16)+I111*COS($B$16),-1000) -> -1000 | M111: 1 | V111: 8.2 | W111: -10.88042222 | X111: -16.78143058 | Y111: 1 | AB111: 8.2 | AC111: -10.88042222 | AD111: -16.78143058 | AE111: 108 | AF111: 8.2 | AG111: -10.88042222 | AH111: -1000
A112: 98 | C112: =C94 -> 8.2 | D112: =D94 -> 0 | E112: =IF(D112<>"",E94+$B$10,"") -> 24 | G112: 8.2 | H112: 0 | I112: 24 | J112: 8.2 | K112: -13.05650666 | L112: -20.1377167 | M112: 0 | V112: 4.658130923 | W112: -10.74188177 | X112: -28.97254269 | Y112: 1 | AB112: 4.658130923 | AC112: -10.74188177 | AD112: -28.97254269 | AE112: 109 | AF112: 4.658130923 | AG112: -10.74188177 | AH112: -1000
A113: 97 | C113: =C95 -> 7.26073941 | D113: 3.810730011 | E113: =IF(D113<>"",E95+$B$10,"") -> 24.92307692 | G113: 7.26073941 | H113: 3.810730011 | I113: 24.92307692 | J113: 7.26073941 | K113: -16.75615505 | L113: -18.83912669 | M113: 0 | V113: -2.907760074 | W113: -10.61805095 | X113: -2.283314062 | Y113: 1 | AB113: -2.907760074 | AC113: -10.61805095 | AD113: -2.283314062 | AE113: 110 | AF113: -2.907760074 | AG113: -10.61805095 | AH113: -1000
A114: 98 | C114: =C96 -> 4.658130923 | D114: 6.7484677 | E114: 25.84615385 | G114: 4.658130923 | H114: 6.7484677 | I114: 25.84615385 | J114: 4.658130923 | K114: -19.72330044 | L114: -18.01546293 | M114: 0 | V114: -7.961722903 | W114: -10.57296683 | X114: -19.91441817 | Y114: 0 | AB114: -7.961722903 | AC114: -10.57296683 | AD114: -1000 | AE114: 111 | AF114: -7.961722903 | AG114: -10.57296683 | AH114: -19.91441817
A115: 97 | C115: =C97 -> 0.9884007781 | D115: 8.140212768 | E115: 26.76923077 | G115: 0.9884007781 | H115: 8.140212768 | I115: 26.76923077 | J115: 0.9884007781 | K115: -21.39324743 | L115: -18.0328518 | M115: 0 | V115: 0.9884007781 | W115: -10.51282522 | X115: -1.25142122 | Y115: 1 | AB115: 0.9884007781 | AC115: -10.51282522 | AD115: -1.25142122 | AE115: 112 | AF115: 0.9884007781 | AG115: -10.51282522 | AH115: -1000
A116: 98 | C116: =C98 -> -2.907760074 | D116: 7.66713319 | E116: 27.69230769 | G116: -2.907760074 | H116: 7.66713319 | I116: 27.69230769 | J116: -2.907760074 | K116: -21.49847316 | L116: -19.06474464 | M116: 0 | V116: -6.137788135 | W116: -10.33526867 | X116: -25.93582345 | Y116: 1 | AB116: -6.137788135 | AC116: -10.33526867 | AD116: -25.93582345 | AE116: 113 | AF116: -6.137788135 | AG116: -10.33526867 | AH116: -1000
A117: 97 | C117: =C99 -> -6.137788135 | D117: 5.437605798 | E117: 28.61538462 | G117: -6.137788135 | H117: 5.437605798 | I117: 28.61538462 | J117: -6.137788135 | K117: -20.12991354 | L117: -21.05218218 | M117: 0 | V117: 7.26073941 | W117: -10.22790172 | X117: -8.77026834 | Y117: 1 | AB117: 7.26073941 | AC117: -10.22790172 | AD117: -8.77026834 | AE117: 114 | AF117: 7.26073941 | AG117: -10.22790172 | AH117: -1000
A118: 98 | C118: =C100 -> -7.961722903 | D118: 1.962388447 | E118: 29.53846154 | G118: -7.961722903 | H118: 1.962388447 | I118: 29.53846154 | J118: -7.961722903 | K118: -17.71613094 | L118: -23.71730135 | M118: 0 | V118: 7.26073941 | W118: -9.356858271 | X118: -21.43630671 | Y118: 1 | AB118: 7.26073941 | AC118: -9.356858271 | AD118: -21.43630671 | AE118: 115 | AF118: 7.26073941 | AG118: -9.356858271 | AH118: -1000
A119: 97 | C119: =C101 -> -7.961722903 | D119: -1.962388447 | E119: 30.46153846 | G119: -7.961722903 | H119: -1.962388447 | I119: 30.46153846 | J119: -7.961722903 | K119: -14.92513572 | L119: -26.6269904 | M119: 0 | V119: -6.137788135 | W119: -9.24949132 | X119: -4.270751596 | Y119: 1 | AB119: -6.137788135 | AC119: -9.24949132 | AD119: -4.270751596 | AE119: 116 | AF119: -6.137788135 | AG119: -9.24949132 | AH119: -1000
A120: 98 | C120: =C102 -> -6.137788135 | D120: -5.437605798 | E120: 31.38461538 | G120: -6.137788135 | H120: -5.437605798 | I120: 31.38461538 | J120: -6.137788135 | K120: -12.51135312 | L120: -29.29210957 | M120: 0 | V120: 0.9884007781 | W120: -9.071934775 | X120: -28.95515383 | Y120: 1 | AB120: 0.9884007781 | AC120: -9.071934775 | AD120: -28.95515383 | AE120: 117 | AF120: 0.9884007781 | AG120: -9.071934775 | AH120: -1000
A121: 97 | C121: =C103 -> -2.907760074 | D121: -7.66713319 | E121: 32.30769231 | G121: -2.907760074 | H121: -7.66713319 | I121: 32.30769231 | J121: -2.907760074 | K121: -11.14279349 | L121: -31.2795471 | M121: 0 | V121: -7.961722903 | W121: -9.011793161 | X121: -10.29215688 | Y121: 0 | AB121: -7.961722903 | AC121: -9.011793161 | AD121: -1000 | AE121: 118 | AF121: -7.961722903 | AG121: -9.011793161 | AH121: -10.29215688
A122: 98 | C122: =C104 -> 0.9884007781 | D122: -8.140212768 | E122: 33.23076923 | G122: 0.9884007781 | H122: -8.140212768 | I122: 33.23076923 | J122: 0.9884007781 | K122: -11.24801922 | L122: -32.31143994 | M122: 0 | V122: -2.907760074 | W122: -8.966709047 | X122: -27.92326098 | Y122: 1 | AB122: -2.907760074 | AC122: -8.966709047 | AD122: -27.92326098 | AE122: 119 | AF122: -2.907760074 | AG122: -8.966709047 | AH122: -1000
A123: 97 | C123: =C105 -> 4.658130923 | D123: -6.7484677 | E123: 34.15384615 | G123: 4.658130923 | H123: -6.7484677 | I123: 34.15384615 | J123: 4.658130923 | K123: -12.91796621 | L123: -32.32882881 | M123: 0 | V123: 4.658130923 | W123: -8.842878222 | X123: -1.234032352 | Y123: 1 | AB123: 4.658130923 | AC123: -8.842878222 | AD123: -1.234032352 | AE123: 120 | AF123: 4.658130923 | AG123: -8.842878222 | AH123: -1000
A124: 98 | C124: =C106 -> 7.26073941 | D124: -3.810730011 | E124: 35.07692308 | G124: 7.26073941 | H124: -3.810730011 | I124: 35.07692308 | J124: 7.26073941 | K124: -15.8851116 | L124: -31.50516506 | M124: 0 | V124: 8.2 | W124: -8.704337774 | X124: -13.42514447 | Y124: 0 | AB124: 8.2 | AC124: -8.704337774 | AD124: -1000 | AE124: 121 | AF124: 8.2 | AG124: -8.704337774 | AH124: -13.42514447
A125: 97 | C125: =C107 ->  | J125: 0 | K125: -50 | L125: -1000 | M125: 0 | V125: 4.658130923 | W125: -8.565797326 | X125: -25.61625658 | Y125: 0 | AB125: 4.658130923 | AC125: -8.565797326 | AD125: -1000 | AE125: 122 | AF125: 4.658130923 | AG125: -8.565797326 | AH125: -25.61625658
A126: 98 | C126: =C108 ->  | J126: 0 | K126: -50 | L126: -1000 | M126: 0 | V126: -2.907760074 | W126: -8.441966502 | X126: 1.072972054 | Y126: 0 | AB126: -2.907760074 | AC126: -8.441966502 | AD126: -1000 | AE126: 123 | AF126: -2.907760074 | AG126: -8.441966502 | AH126: 1.072972054
A127: 97 | C127: =C109 ->  | J127: 0 | K127: -50 | L127: -1000 | M127: 0 | V127: -7.961722903 | W127: -8.396882388 | X127: -16.55813205 | Y127: 1 | AB127: -7.961722903 | AC127: -8.396882388 | AD127: -16.55813205 | AE127: 124 | AF127: -7.961722903 | AG127: -8.396882388 | AH127: -1000
A128: 98 | C128: =C110 ->  | J128: 0 | K128: -50 | L128: -1000 | M128: 0 | V128: 0.9884007781 | W128: -8.336740773 | X128: 2.104864897 | Y128: 0 | AB128: 0.9884007781 | AC128: -8.336740773 | AD128: -1000 | AE128: 125 | AF128: 0.9884007781 | AG128: -8.336740773 | AH128: 2.104864897
A129: 97 | J129: 0 | K129: -50 | L129: -1000 | M129: 0 | V129: -6.137788135 | W129: -8.159184228 | X129: -22.57953733 | Y129: 0 | AB129: -6.137788135 | AC129: -8.159184228 | AD129: -1000 | AE129: 126 | AF129: -6.137788135 | AG129: -8.159184228 | AH129: -22.57953733
A130: 98 | C130: =C112 -> 8.2 | D130: =D112 -> 0 | E130: =IF(D130<>"",E112+$B$10,"") -> 28 | G130: 8.2 | H130: 0 | I130: 28 | J130: 8.2 | K130: -15.2325911 | L130: -23.49400281 | M130: 1 | V130: 7.26073941 | W130: -8.051817277 | X130: -5.413982224 | Y130: 0 | AB130: 7.26073941 | AC130: -8.051817277 | AD130: -1000 | AE130: 127 | AF130: 7.26073941 | AG130: -8.051817277 | AH130: -5.413982224
A131: 97 | C131: =C113 -> 7.26073941 | D131: 3.810730011 | E131: =IF(D131<>"",E113+$B$10,"") -> 28.92307692 | G131: 7.26073941 | H131: 3.810730011 | I131: 28.92307692 | J131: 7.26073941 | K131: -18.9322395 | L131: -22.19541281 | M131: 1 | V131: 7.26073941 | W131: -7.180773828 | X131: -18.08002059 | Y131: 0 | AB131: 7.26073941 | AC131: -7.180773828 | AD131: -1000 | AE131: 128 | AF131: 7.26073941 | AG131: -7.180773828 | AH131: -18.08002059
A132: 98 | C132: =C114 -> 4.658130923 | D132: 6.7484677 | E132: 29.84615385 | G132: 4.658130923 | H132: 6.7484677 | I132: 29.84615385 | J132: 4.658130923 | K132: -21.89938488 | L132: -21.37174905 | M132: 1 | V132: -6.137788135 | W132: -7.073406877 | X132: -0.9144654799 | Y132: 0 | AB132: -6.137788135 | AC132: -7.073406877 | AD132: -1000 | AE132: 129 | AF132: -6.137788135 | AG132: -7.073406877 | AH132: -0.9144654799
A133: 97 | C133: =C115 -> 0.9884007781 | D133: 8.140212768 | E133: 30.76923077 | G133: 0.9884007781 | H133: 8.140212768 | I133: 30.76923077 | J133: 0.9884007781 | K133: -23.56933188 | L133: -21.38913792 | M133: 1 | V133: 0.9884007781 | W133: -6.895850332 | X133: -25.59886771 | Y133: 0 | AB133: =V133 -> 0.9884007781 | AC133: =W133 -> -6.895850332 | AD133: =IF(Y133=0,-1000,X133) -> -1000 | AE133: 130 | AF133: =V133 -> 0.9884007781 | AG133: =W133 -> -6.895850332 | AH133: =IF(Y133=1,-1000,X133) -> -25.59886771
A134: 98 | C134: =C116 -> -2.907760074 | D134: 7.66713319 | E134: 31.69230769 | G134: -2.907760074 | H134: 7.66713319 | I134: 31.69230769 | J134: -2.907760074 | K134: -23.67455761 | L134: -22.42103076 | M134: 1 | V134: -7.961722903 | W134: -6.835708717 | X134: -6.935870765 | Y134: 1 | AB134: -7.961722903 | AC134: -6.835708717 | AD134: -6.935870765 | AE134: 131 | AF134: -7.961722903 | AG134: -6.835708717 | AH134: -1000
A135: 97 | C135: =C117 -> -6.137788135 | D135: 5.437605798 | E135: 32.61538462 | G135: -6.137788135 | H135: 5.437605798 | I135: 32.61538462 | J135: -6.137788135 | K135: -22.30599798 | L135: -24.40846829 | M135: 1 | V135: -2.907760074 | W135: -6.790624603 | X135: -24.56697487 | Y135: 0 | AB135: -2.907760074 | AC135: -6.790624603 | AD135: -1000 | AE135: 132 | AF135: -2.907760074 | AG135: -6.790624603 | AH135: -24.56697487
A136: 98 | C136: =C118 -> -7.961722903 | D136: 1.962388447 | E136: 33.53846154 | G136: -7.961722903 | H136: 1.962388447 | I136: 33.53846154 | J136: -7.961722903 | K136: -19.89221538 | L136: -27.07358746 | M136: 1 | V136: 4.658130923 | W136: -6.666793778 | X136: 2.122253765 | Y136: 0 | AB136: 4.658130923 | AC136: -6.666793778 | AD136: -1000 | AE136: 133 | AF136: 4.658130923 | AG136: -6.666793778 | AH136: 2.122253765
A137: 97 | C137: =C119 -> -7.961722903 | D137: -1.962388447 | E137: 34.46153846 | G137: -7.961722903 | H137: -1.962388447 | I137: 34.46153846 | J137: -7.961722903 | K137: -17.10122016 | L137: -29.98327651 | M137: 1 | V137: 8.2 | W137: -6.528253331 | X137: -10.06885835 | Y137: 1 | AB137: 8.2 | AC137: -6.528253331 | AD137: -10.06885835 | AE137: 134 | AF137: 8.2 | AG137: -6.528253331 | AH137: -1000
A138: 98 | C138: =C120 -> -6.137788135 | D138: -5.437605798 | E138: 35.38461538 | G138: -6.137788135 | H138: -5.437605798 | I138: 35.38461538 | J138: -6.137788135 | K138: -14.68743756 | L138: -32.64839568 | M138: 1 | V138: 4.658130923 | W138: -6.389712883 | X138: -22.25997046 | Y138: 1 | AB138: 4.658130923 | AC138: -6.389712883 | AD138: -22.25997046 | AE138: 135 | AF138: 4.658130923 | AG138: -6.389712883 | AH138: -1000
A139: 97 | C139: =C121 -> -2.907760074 | D139: -7.66713319 | E139: 36.30769231 | G139: -2.907760074 | H139: -7.66713319 | I139: 36.30769231 | J139: -2.907760074 | K139: -13.31887793 | L139: -34.63583322 | M139: 1 | V139: -7.961722903 | W139: -6.220797944 | X139: -13.20184593 | Y139: 0 | AB139: -7.961722903 | AC139: -6.220797944 | AD139: -1000 | AE139: 136 | AF139: -7.961722903 | AG139: -6.220797944 | AH139: -13.20184593
A140: 98 | C140: =C122 -> 0.9884007781 | D140: -8.140212768 | E140: 37.23076923 | G140: 0.9884007781 | H140: -8.140212768 | I140: 37.23076923 | J140: 0.9884007781 | K140: -13.42410366 | L140: -35.66772606 | M140: 1 | V140: -6.137788135 | W140: -5.983099785 | X140: -19.22325122 | Y140: 1 | AB140: -6.137788135 | AC140: -5.983099785 | AD140: -19.22325122 | AE140: 137 | AF140: -6.137788135 | AG140: -5.983099785 | AH140: -1000
A141: 97 | C141: =C123 -> 4.658130923 | D141: -6.7484677 | E141: 38.15384615 | G141: 4.658130923 | H141: -6.7484677 | I141: 38.15384615 | J141: 4.658130923 | K141: -15.09405066 | L141: -35.68511493 | M141: 1 | V141: 7.26073941 | W141: -5.875732834 | X141: -2.057696108 | Y141: 1 | AB141: 7.26073941 | AC141: -5.875732834 | AD141: -2.057696108 | AE141: 138 | AF141: 7.26073941 | AG141: -5.875732834 | AH141: -1000
A142: 98 | C142: =C124 -> 7.26073941 | D142: -3.810730011 | E142: 39.07692308 | G142: 7.26073941 | H142: -3.810730011 | I142: 39.07692308 | J142: 7.26073941 | K142: -18.06119605 | L142: -34.86145117 | M142: 1 | V142: 7.26073941 | W142: -5.004689384 | X142: -14.72373447 | Y142: 1 | AB142: 7.26073941 | AC142: -5.004689384 | AD142: -14.72373447 | AE142: 139 | AF142: 7.26073941 | AG142: -5.004689384 | AH142: -1000
A143: 97 | C143: =C125 ->  | J143: 0 | K143: -50 | L143: -1000 | M143: 1 | V143: 0.9884007781 | W143: -4.719765888 | X143: -22.24258159 | Y143: 1 | AB143: 0.9884007781 | AC143: -4.719765888 | AD143: -22.24258159 | AE143: 140 | AF143: 0.9884007781 | AG143: -4.719765888 | AH143: -1000
A144: 98 | C144: =C126 ->  | J144: 0 | K144: -50 | L144: -1000 | M144: 1 | V144: -7.961722903 | W144: -4.659624274 | X144: -3.579584649 | Y144: 0 | AB144: -7.961722903 | AC144: -4.659624274 | AD144: -1000 | AE144: 141 | AF144: -7.961722903 | AG144: -4.659624274 | AH144: -3.579584649
A145: 97 | C145: =C127 ->  | J145: 0 | K145: -50 | L145: -1000 | M145: 1 | V145: -2.907760074 | W145: -4.614540159 | X145: -21.21068875 | Y145: 1 | AB145: -2.907760074 | AC145: -4.614540159 | AD145: -21.21068875 | AE145: 142 | AF145: -2.907760074 | AG145: -4.614540159 | AH145: -1000
A146: 98 | C146: =C128 ->  | J146: 0 | K146: -50 | L146: -1000 | M146: 1 | V146: 8.2 | W146: -4.352168887 | X146: -6.712572233 | Y146: 0 | AB146: 8.2 | AC146: -4.352168887 | AD146: -1000 | AE146: 143 | AF146: 8.2 | AG146: -4.352168887 | AH146: -6.712572233
A147: 97 | J147: 0 | K147: -50 | L147: -1000 | M147: 1 | V147: 4.658130923 | W147: -4.213628439 | X147: -18.90368435 | Y147: 0 | AB147: 4.658130923 | AC147: -4.213628439 | AD147: -1000 | AE147: 144 | AF147: 4.658130923 | AG147: -4.213628439 | AH147: -18.90368435
A148: 98 | C148: =C130 -> 8.2 | D148: =D130 -> 0 | E148: =IF(D148<>"",E130+$B$10,"") -> 32 | G148: 8.2 | H148: 0 | I148: 32 | J148: 8.2 | K148: -17.40867555 | L148: -26.85028893 | M148: 0 | V148: -7.961722903 | W148: -4.0447135 | X148: -9.845559816 | Y148: 1 | AB148: -7.961722903 | AC148: -4.0447135 | AD148: -9.845559816 | AE148: 145 | AF148: -7.961722903 | AG148: -4.0447135 | AH148: -1000
A149: 97 | C149: =C131 -> 7.26073941 | D149: 3.810730011 | E149: =IF(D149<>"",E131+$B$10,"") -> 32.92307692 | G149: 7.26073941 | H149: 3.810730011 | I149: 32.92307692 | J149: 7.26073941 | K149: -21.10832394 | L149: -25.55169892 | M149: 0 | V149: -6.137788135 | W149: -3.807015341 | X149: -15.8669651 | Y149: 0 | AB149: -6.137788135 | AC149: -3.807015341 | AD149: -1000 | AE149: 146 | AF149: -6.137788135 | AG149: -3.807015341 | AH149: -15.8669651
A150: 98 | C150: =C132 -> 4.658130923 | D150: 6.7484677 | E150: 33.84615385 | G150: 4.658130923 | H150: 6.7484677 | I150: 33.84615385 | J150: 4.658130923 | K150: -24.07546933 | L150: -24.72803517 | M150: 0 | V150: 7.26073941 | W150: -3.69964839 | X150: 1.298590008 | Y150: 0 | AB150: 7.26073941 | AC150: -3.69964839 | AD150: -1000 | AE150: 147 | AF150: 7.26073941 | AG150: -3.69964839 | AH150: 1.298590008
A151: 97 | C151: =C133 -> 0.9884007781 | D151: 8.140212768 | E151: 34.76923077 | G151: 0.9884007781 | H151: 8.140212768 | I151: 34.76923077 | J151: 0.9884007781 | K151: -25.74541632 | L151: -24.74542403 | M151: =ABS(M133-1) -> 0 | V151: 7.26073941 | W151: -2.828604941 | X151: -11.36744836 | Y151: 0 | AB151: 7.26073941 | AC151: -2.828604941 | AD151: -1000 | AE151: 148 | AF151: 7.26073941 | AG151: -2.828604941 | AH151: -11.36744836
A152: 98 | C152: =C134 -> -2.907760074 | D152: 7.66713319 | E152: 35.69230769 | G152: -2.907760074 | H152: 7.66713319 | I152: 35.69230769 | J152: -2.907760074 | K152: -25.85064205 | L152: -25.77731688 | M152: 0 | V152: 0.9884007781 | W152: -2.543681444 | X152: -18.88629548 | Y152: 0 | AB152: 0.9884007781 | AC152: -2.543681444 | AD152: -1000 | AE152: 149 | AF152: 0.9884007781 | AG152: -2.543681444 | AH152: -18.88629548
A153: 97 | C153: =C135 -> -6.137788135 | D153: 5.437605798 | E153: 36.61538462 | G153: -6.137788135 | H153: 5.437605798 | I153: 36.61538462 | J153: -6.137788135 | K153: -24.48208243 | L153: -27.76475441 | M153: 0 | V153: -2.907760074 | W153: -2.438455716 | X153: -17.85440264 | Y153: 0 | AB153: -2.907760074 | AC153: -2.438455716 | AD153: -1000 | AE153: 150 | AF153: -2.907760074 | AG153: -2.438455716 | AH153: -17.85440264
A154: 98 | C154: =C136 -> -7.961722903 | D154: 1.962388447 | E154: 37.53846154 | G154: -7.961722903 | H154: 1.962388447 | I154: 37.53846154 | J154: -7.961722903 | K154: -22.06829982 | L154: -30.42987358 | M154: 0 | V154: 8.2 | W154: -2.176084444 | X154: -3.356286116 | Y154: 1 | AB154: 8.2 | AC154: -2.176084444 | AD154: -3.356286116 | AE154: 151 | AF154: 8.2 | AG154: -2.176084444 | AH154: -1000
A155: 97 | C155: =C137 -> -7.961722903 | D155: -1.962388447 | E155: 38.46153846 | G155: -7.961722903 | H155: -1.962388447 | I155: 38.46153846 | J155: -7.961722903 | K155: -19.27730461 | L155: -33.33956263 | M155: 0 | V155: 4.658130923 | W155: -2.037543996 | X155: -15.54739823 | Y155: 1 | AB155: 4.658130923 | AC155: -2.037543996 | AD155: -15.54739823 | AE155: 152 | AF155: 4.658130923 | AG155: -2.037543996 | AH155: -1000
A156: 98 | C156: =C138 -> -6.137788135 | D156: -5.437605798 | E156: 39.38461538 | G156: -6.137788135 | H156: -5.437605798 | I156: 39.38461538 | J156: -6.137788135 | K156: -16.863522 | L156: -36.0046818 | M156: 0 | V156: -7.961722903 | W156: -1.868629057 | X156: -6.4892737 | Y156: 0 | AB156: -7.961722903 | AC156: -1.868629057 | AD156: -1000 | AE156: 153 | AF156: -7.961722903 | AG156: -1.868629057 | AH156: -6.4892737
A157: 97 | C157: =C139 -> -2.907760074 | D157: -7.66713319 | E157: 40.30769231 | G157: -2.907760074 | H157: -7.66713319 | I157: 40.30769231 | J157: -2.907760074 | K157: -15.49496238 | L157: -37.99211933 | M157: 0 | V157: -6.137788135 | W157: -1.630930898 | X157: -12.51067899 | Y157: 1 | AB157: -6.137788135 | AC157: -1.630930898 | AD157: -12.51067899 | AE157: 154 | AF157: -6.137788135 | AG157: -1.630930898 | AH157: -1000
A158: 98 | C158: =C140 -> 0.9884007781 | D158: -8.140212768 | E158: 41.23076923 | G158: 0.9884007781 | H158: -8.140212768 | I158: 41.23076923 | J158: 0.9884007781 | K158: -15.60018811 | L158: -39.02401218 | M158: 0 | V158: 0.9884007781 | W158: -0.3675970009 | X158: -15.53000936 | Y158: 1 | AB158: 0.9884007781 | AC158: -0.3675970009 | AD158: -15.53000936 | AE158: 155 | AF158: 0.9884007781 | AG158: -0.3675970009 | AH158: -1000
A159: 97 | C159: =C141 -> 4.658130923 | D159: -6.7484677 | E159: 42.15384615 | G159: 4.658130923 | H159: -6.7484677 | I159: 42.15384615 | J159: 4.658130923 | K159: -17.2701351 | L159: -39.04140104 | M159: 0 | V159: -2.907760074 | W159: -0.2623712723 | X159: -14.49811652 | Y159: 1 | AB159: -2.907760074 | AC159: -0.2623712723 | AD159: -14.49811652 | AE159: 156 | AF159: -2.907760074 | AG159: -0.2623712723 | AH159: -1000
A160: 98 | C160: =C142 -> 7.26073941 | D160: -3.810730011 | E160: 43.07692308 | G160: 7.26073941 | H160: -3.810730011 | I160: 43.07692308 | J160: 7.26073941 | K160: -20.23728049 | L160: -38.21773729 | M160: 0 | V160: 8.2 | W160: 0 | X160: 0 | Y160: 0 | AB160: 8.2 | AC160: 0 | AD160: -1000 | AE160: 157 | AF160: 8.2 | AG160: 0 | AH160: 0
A161: 97 | C161: =C143 ->  | J161: 0 | K161: -50 | L161: -1000 | M161: 0 | V161: 4.658130923 | W161: 0.1385404478 | X161: -12.19111211 | Y161: 0 | AB161: 4.658130923 | AC161: 0.1385404478 | AD161: -1000 | AE161: 158 | AF161: 4.658130923 | AG161: 0.1385404478 | AH161: -12.19111211
A162: 98 | C162: =C144 ->  | J162: 0 | K162: -50 | L162: -1000 | M162: 0 | V162: -6.137788135 | W162: 0.5451535461 | X162: -9.154392869 | Y162: 0 | AB162: -6.137788135 | AC162: 0.5451535461 | AD162: -1000 | AE162: 159 | AF162: -6.137788135 | AG162: 0.5451535461 | AH162: -9.154392869
A163: 97 | C163: =C145 ->  | J163: 0 | K163: -50 | L163: -1000 | M163: 0 | V163: 0.9884007781 | W163: 1.808487443 | X163: -12.17372325 | Y163: 0 | AB163: 0.9884007781 | AC163: 1.808487443 | AD163: -1000 | AE163: 160 | AF163: 0.9884007781 | AG163: 1.808487443 | AH163: -12.17372325
A164: 98 | C164: =C146 ->  | J164: 0 | K164: -50 | L164: -1000 | M164: 0 | V164: -2.907760074 | W164: 1.913713171 | X164: -11.1418304 | Y164: 0 | AB164: -2.907760074 | AC164: 1.913713171 | AD164: -1000 | AE164: 161 | AF164: -2.907760074 | AG164: 1.913713171 | AH164: -11.1418304

Sheet Fig
